bitfinex-derivatives/quotes_BNBF0:USTF0_20250331
["timestamp","ask_amount","ask_price","bid_price","bid_amount"]
[1743386234389,2.32130521,603.66,602.56,0.33191715]
[1743386235287,2.32105766,603.66,602.56,0.33191715]
[1743386235489,1.16584574,603.65,602.56,0.33191715]
[1743386235690,2.60004821,603.65,602.56,0.33191715]
[1743386235891,1.16584574,603.65,602.56,0.33191715]
[1743386236287,1.16584574,603.64,602.56,0.33191715]
[1743386236685,3.77549764,603.7,602.56,0.33191715]
[1743386236884,2.3210899,603.69,602.56,0.33191715]
[1743386237389,1.45440774,603.7,602.56,0.33191715]
[1743386237895,0.288562,603.7,602.56,0.33191715]
[1743386238288,2.3210899,603.71,602.56,0.33191715]
[1743386238488,0.28848904,603.7,602.56,0.33191715]
[1743386241391,2.3210899,603.71,602.56,0.33191715]
[1743386242792,0.28855482,603.7,602.56,0.33191715]
[1743386244388,0.88730876,603.71,602.56,0.33191715]
[1743386244592,1.43423471,603.7,602.56,0.33191715]
[1743386244892,1.43423471,603.69,602.56,0.33191715]
[1743386245296,1.43423471,603.68,602.56,0.33191715]
[1743386245589,1.45440535,603.68,602.56,0.33191715]
[1743386245789,2.88864006,603.68,602.56,0.33191715]
[1743386245994,7.49145166,603.68,602.56,0.33191715]
[1743386246195,8.51489205,603.67,602.56,0.33191715]
[1743386246396,6.53432369,603.66,602.56,0.33191715]
[1743386246593,6.53432369,603.65,602.56,0.33191715]
[1743386246794,6.03704631,603.64,602.56,0.33191715]
[1743386246994,6.03704631,603.63,602.56,0.33191715]
[1743386247192,6.53433978,603.62,602.56,0.33191715]
[1743386247390,6.53433978,603.61,602.56,0.33191715]
[1743386247595,6.53433978,603.6,602.56,0.33191715]
[1743386247793,6.53433978,603.59,602.56,0.33191715]
[1743386247994,6.53433978,603.58,602.56,0.33191715]
[1743386248295,9.58849071,603.57,602.56,0.33191715]
[1743386248599,6.53433978,603.56,602.56,0.33191715]
[1743386248896,5.3612069,603.55,602.56,0.33191715]
[1743386249091,3.72999034,603.54,602.56,0.33191715]
[1743386249294,7.20289205,603.54,602.56,0.33191715]
[1743386249498,6.03704631,603.53,602.56,0.33191715]
[1743386249696,6.03704631,603.52,602.56,0.33191715]
[1743386249896,4.6172991,603.51,602.56,0.33191715]
[1743386250090,0.88730876,603.5,602.56,0.33191715]
[1743386250294,6.03774398,603.51,602.56,0.33191715]
[1743386250495,0.88730876,603.5,602.56,0.33191715]
[1743386250697,1.16584574,603.49,602.56,0.33191715]
[1743386251198,1.16584574,603.48,602.56,0.33191715]
[1743386251800,1.43583067,603.49,602.56,0.33191715]
[1743386252099,0.28854525,603.57,602.56,0.33191715]
[1743386252300,1.16584574,603.56,602.56,0.33191715]
[1743386252800,1.16584574,603.55,602.56,0.33191715]
[1743386253694,1.16584574,603.54,602.56,0.33191715]
[1743386254603,2.32401062,603.55,602.56,0.33191715]
[1743386254794,4.62140968,603.55,602.56,0.33191715]
[1743386255000,2.32401062,603.54,602.56,0.33191715]
[1743386255196,2.32401062,603.55,602.56,0.33191715]
[1743386255398,3.48985636,603.55,602.56,0.33191715]
[1743386255698,2.32401062,603.54,602.56,0.33191715]
[1743386255999,3.48985636,603.55,602.56,0.33191715]
[1743386256199,3.48985636,603.54,602.56,0.33191715]
[1743386256799,2.32401062,603.54,602.56,0.33191715]
[1743386257099,1.16584574,603.66,602.56,0.33191715]
[1743386257100,0.88805387,603.65,602.56,0.33191715]
[1743386257294,3.73323678,603.65,602.56,0.33191715]
[1743386257500,1.16584574,603.64,602.56,0.33191715]
[1743386257700,3.76321336,603.64,602.56,0.33191715]
[1743386257895,4.89908252,603.63,602.56,0.33191715]
[1743386258100,2.30878049,603.62,602.56,0.33191715]
[1743386258299,3.74473724,603.62,602.56,0.33191715]
[1743386258501,1.16584574,603.61,602.56,0.33191715]
[1743386258700,3.47462623,603.61,602.56,0.33191715]
[1743386258900,0.88805387,603.6,602.56,0.33191715]
[1743386259200,2.32401062,603.59,602.56,0.33191715]
[1743386259395,2.32401062,603.58,602.56,0.33191715]
[1743386259595,2.32401062,603.57,602.56,0.33191715]
[1743386259795,1.43595675,603.56,602.56,0.33191715]
[1743386259999,2.32401062,603.55,602.56,0.33191715]
[1743386260201,1.43595675,603.54,602.56,0.33191715]
[1743386260501,6.04201727,603.55,602.56,0.33191715]
[1743386260703,3.74473724,603.54,602.56,0.33191715]
[1743386260904,1.16584574,603.53,602.56,0.33191715]
[1743386261310,7.20715171,603.53,602.56,0.33191715]
[1743386261606,4.62068209,603.52,602.56,0.33191715]
[1743386261802,2.32357922,603.51,602.56,0.33191715]
[1743386262307,1.16584574,603.64,602.56,0.33191715]
[1743386262904,1.16584574,603.65,602.56,0.33191715]
[1743386263707,0.2885285,603.84,602.56,0.33191715]
[1743386263708,1.16584574,603.71,602.56,0.33191715]
[1743386264503,1.16584574,603.7,602.56,0.33191715]
[1743386265210,1.16584574,603.69,602.56,0.33191715]
[1743386266510,1.391,603.7,602.56,0.33191715]
[1743386324150,0.28823456,604.76,602.56,0.33191715]
[1743386325151,3.05094343,604.97,602.56,0.33191715]
[1743386325452,0.28804251,604.93,602.56,0.33191715]
[1743386327450,1.826,604.92,602.56,0.33191715]
[1743386338757,0.2885979,604.93,602.56,0.33191715]
[1743386340452,9.26645197,605.15,602.56,0.33191715]
[1743386340756,7.08997051,605.14,602.56,0.33191715]
[1743386340955,7.08997597,605.13,602.56,0.33191715]
[1743386341256,7.08998143,605.12,602.56,0.33191715]
[1743386341556,1.911,605.13,602.56,0.33191715]
[1743386341557,10.14093032,605.11,602.56,0.33191715]
[1743386341757,6.5937647,605.1,602.56,0.33191715]
[1743386342056,2.58066585,605.09,602.56,0.33191715]
[1743386342252,1.80033386,605.08,602.56,0.33191715]
[1743386342455,0.30395332,605.07,602.56,0.33191715]
[1743386342953,2.59691974,605.07,602.56,0.33191715]
[1743386343257,0.87541008,605.07,602.56,0.33191715]
[1743386343559,0.3305348,605.08,602.56,0.33191715]
[1743386343954,0.28802582,605.06,602.56,0.33191715]
[1743386346658,0.3305348,605.08,602.56,0.33191715]
[1743386346863,0.28799841,605.06,602.56,0.33191715]
[1743386348061,0.3038804,605.05,602.56,0.33191715]
[1743386348557,0.28799841,605.06,602.56,0.33191715]
[1743386348866,0.30388083,605.05,602.56,0.33191715]
[1743386350257,0.28799841,605.06,602.56,0.33191715]
[1743386352462,0.3305348,605.08,602.56,0.33191715]
[1743386352668,0.30387971,605.07,602.56,0.33191715]
[1743386352868,0.3305348,605.08,602.56,0.33191715]
[1743386353265,0.3038758,605.07,602.56,0.33191715]
[1743386353472,0.3305348,605.08,602.56,0.33191715]
[1743386353868,0.28855602,605.06,602.56,0.33191715]
[1743386355370,0.3305348,605.08,602.56,0.33191715]
[1743386356666,0.28853568,605.07,602.56,0.33191715]
[1743386358471,0.3305348,605.08,602.56,0.33191715]
[1743386359475,1.16584574,605.07,602.56,0.33191715]
[1743386359674,0.33054573,605.06,602.56,0.33191715]
[1743386360073,1.49639147,605.06,602.56,0.33191715]
[1743386360376,1.16584574,605.05,602.56,0.33191715]
[1743386360577,0.33055665,605.04,602.56,0.33191715]
[1743386360877,9.36100162,605.04,602.56,0.33191715]
[1743386361078,5.97950154,605.03,602.56,0.33191715]
[1743386361274,2.28448444,605.02,602.56,0.33191715]
[1743386361479,5.97950154,605.02,602.56,0.33191715]
[1743386361679,2.28448444,605.01,602.56,0.33191715]
[1743386361876,0.87864786,605.01,602.56,0.33191715]
[1743386362082,3.92959129,605.01,602.56,0.33191715]
[1743386362277,3.6950171,605.0,602.56,0.33191715]
[1743386362482,0.33058397,604.99,602.56,0.33191715]
[1743386362677,3.78091415,604.99,602.56,0.33191715]
[1743386362882,3.6950171,604.98,602.56,0.33191715]
[1743386363079,5.98127578,604.98,602.56,0.33191715]
[1743386363279,2.0444936,604.97,602.56,0.33191715]
[1743386363678,1.16584574,604.97,602.56,0.33191715]
[1743386364278,0.33058397,604.99,602.56,0.33191715]
[1743386365780,0.28865535,604.98,602.56,0.33191715]
[1743386365978,0.61924479,604.98,602.56,0.33191715]
[1743386366378,0.30401139,604.97,602.56,0.33191715]
[1743386366583,0.33060037,604.96,602.56,0.33191715]
[1743386366783,0.30401139,604.95,602.56,0.33191715]
[1743386367084,0.3306113,604.94,602.56,0.33191715]
[1743386367381,0.30401139,604.93,602.56,0.33191715]
[1743386367584,0.33062223,604.92,602.56,0.33191715]
[1743386367779,0.30401139,604.91,602.56,0.33191715]
[1743386368679,0.2885632,604.9,602.56,0.33191715]
[1743386368884,0.30401139,604.89,602.56,0.33191715]
[1743386372588,0.2885632,604.9,602.56,0.33191715]
[1743386376585,2.29729176,604.91,602.56,0.33191715]
[1743386376884,0.63466945,604.9,602.56,0.33191715]
[1743386377092,0.30403629,604.89,602.56,0.33191715]
[1743386377291,7.11062242,604.9,602.56,0.33191715]
[1743386377490,6.82030611,604.89,602.56,0.33191715]
[1743386377688,3.38630393,604.88,602.56,0.33191715]
[1743386377893,0.30405433,604.87,602.56,0.33191715]
[1743386378289,4.03310016,604.87,602.56,0.33191715]
[1743386378489,0.30405433,604.86,602.56,0.33191715]
[1743386378692,6.32390668,604.86,602.56,0.33191715]
[1743386378994,6.01981464,604.85,602.56,0.33191715]
[1743386379194,6.32387369,604.84,602.56,0.33191715]
[1743386379493,2.29729176,604.83,602.56,0.33191715]
[1743386379689,0.30405572,604.82,602.56,0.33191715]
[1743386379893,6.32387036,604.82,602.56,0.33191715]
[1743386380092,2.60134748,604.81,602.56,0.33191715]
[1743386380390,0.30405421,604.8,602.56,0.33191715]
[1743386380590,0.88356436,604.8,602.56,0.33191715]
[1743386380890,2.60386354,604.8,602.56,0.33191715]
[1743386381088,2.60523402,604.8,602.56,0.33191715]
[1743386381293,1.17349445,604.8,602.56,0.33191715]
[1743386381490,0.28855961,604.8,602.56,0.33191715]
[1743386382500,0.88493484,604.8,602.56,0.33191715]
[1743386382692,3.93587827,604.8,602.56,0.33191715]
[1743386382893,1.43118576,604.79,602.56,0.33191715]
[1743386383092,2.3161206,604.79,602.56,0.33191715]
[1743386383794,0.28813552,604.78,602.56,0.33191715]
[1743386384397,0.28813552,604.78,603.1,2.49072383]
[1743386384700,0.28813552,604.78,603.12,0.33160896]
[1743386385601,4.22365274,604.78,603.12,0.33160896]
[1743386385794,4.60455678,604.77,603.12,0.33160896]
[1743386386000,1.43118576,604.77,603.12,0.33160896]
[1743386386200,3.05094343,604.76,603.12,0.33160896]
[1743386386702,0.28813552,604.78,603.12,0.33160896]
[1743386388601,0.8842979,604.84,603.12,0.33160896]
[1743386388804,0.30408207,604.83,603.12,0.33160896]
[1743386388995,0.30408207,604.82,603.12,0.33160896]
[1743386389200,0.30408207,604.83,603.12,0.33160896]
[1743386389498,0.30407622,604.82,603.12,0.33160896]
[1743386389701,0.922829,604.82,603.12,0.33160896]
[1743386389901,0.30407622,604.81,603.12,0.33160896]
[1743386392099,0.33067689,604.82,603.12,0.33160896]
[1743386392803,0.28803536,604.81,603.12,0.33160896]
[1743386393899,0.28803536,604.81,603.18,2.49072383]
[1743386394104,0.28803536,604.81,603.2,0.33156498]
[1743386394604,0.33067689,604.82,603.2,0.33156498]
[1743386395501,1.16584574,604.81,603.23,2.49072383]
[1743386395704,1.16584574,604.81,603.25,0.3315375]
[1743386395705,1.45387275,604.81,603.25,0.3315375]
[1743386396305,1.16584574,604.8,603.25,0.3315375]
[1743386396508,1.42940489,604.79,603.25,0.3315375]
[1743386396908,1.42940489,604.78,603.25,0.3315375]
[1743386397106,1.42953503,604.79,603.25,0.3315375]
[1743386397309,2.59538077,604.78,603.25,0.3315375]
[1743386397506,1.42953503,604.77,603.25,0.3315375]
[1743386397807,1.16584574,604.76,603.25,0.3315375]
[1743386398003,7.67678168,604.76,603.25,0.3315375]
[1743386398203,6.51093594,604.75,603.25,0.3315375]
[1743386398407,2.79414486,604.74,603.25,0.3315375]
[1743386398600,0.88375672,604.74,603.25,0.3315375]
[1743386398806,6.79901899,604.74,603.25,0.3315375]
[1743386399002,6.01425828,604.73,603.25,0.3315375]
[1743386399206,6.01425828,604.72,603.25,0.3315375]
[1743386399402,6.01425828,604.71,603.25,0.3315375]
[1743386399704,9.04169969,604.7,603.25,0.3315375]
[1743386399902,6.01425828,604.69,603.25,0.3315375]
[1743386400106,2.29780791,604.68,603.25,0.3315375]
[1743386400306,0.88377227,604.68,603.25,0.3315375]
[1743386400503,3.91121368,604.68,603.25,0.3315375]
[1743386400705,3.71645037,604.67,603.25,0.3315375]
[1743386400902,0.88377227,604.66,603.25,0.3315375]
[1743386401205,4.60022264,604.67,603.25,0.3315375]
[1743386401400,2.04961801,604.66,603.25,0.3315375]
[1743386401602,3.479022,604.66,603.25,0.3315375]
[1743386401807,1.42940399,604.65,603.25,0.3315375]
[1743386402007,1.16584574,604.66,603.25,0.3315375]
[1743386402400,0.28808305,604.74,603.25,0.3315375]
[1743386403406,1.21439246,604.82,603.25,0.3315375]
[1743386403605,5.67119711,604.82,603.25,0.3315375]
[1743386403807,0.28803536,604.75,603.25,0.3315375]
[1743386404806,0.33067689,604.82,603.25,0.3315375]
[1743386405211,0.28801986,604.79,603.25,0.3315375]
[1743386407206,1.215,604.78,603.25,0.3315375]
[1743386409811,0.28806039,604.77,603.25,0.3315375]
[1743386410011,1.46993567,604.76,603.25,0.3315375]
[1743386410212,0.30408993,604.75,603.25,0.3315375]
[1743386411112,2.64429678,604.74,603.25,0.3315375]
[1743386411315,1.64509107,604.71,603.25,0.3315375]
[1743386411510,0.63489464,604.7,603.25,0.3315375]
[1743386411710,0.30415213,604.69,603.25,0.3315375]
[1743386411912,1.46999787,604.69,603.25,0.3315375]
[1743386412108,0.30415213,604.68,603.25,0.3315375]
[1743386412308,1.18806101,604.68,603.25,0.3315375]
[1743386412508,0.30415213,604.67,603.25,0.3315375]
[1743386412708,1.46999787,604.67,603.25,0.3315375]
[1743386412906,0.30415213,604.66,603.25,0.3315375]
[1743386413107,0.30414595,604.65,603.25,0.3315375]
[1743386413309,0.30414595,604.64,603.25,0.3315375]
[1743386413516,0.30414595,604.63,603.25,0.3315375]
[1743386413716,0.28812479,604.63,603.25,0.3315375]
[1743386413916,1.45397053,604.63,603.25,0.3315375]
[1743386414310,7.47351882,604.63,603.25,0.3315375]
[1743386414510,6.01954829,604.62,603.25,0.3315375]
[1743386414713,2.29816309,604.61,603.25,0.3315375]
[1743386414913,0.30414488,604.6,603.25,0.3315375]
[1743386415516,6.82026189,604.6,603.25,0.3315375]
[1743386415815,3.09887669,604.59,603.25,0.3315375]
[1743386416016,0.30414488,604.58,603.25,0.3315375]
[1743386416210,2.29816309,604.59,603.25,0.3315375]
[1743386416416,1.16584574,604.58,603.25,0.3315375]
[1743386416716,0.30416399,604.57,603.25,0.3315375]
[1743386417212,4.03476928,604.57,603.25,0.3315375]
[1743386417417,0.30416399,604.56,603.25,0.3315375]
[1743386417616,2.60232708,604.56,603.25,0.3315375]
[1743386417817,0.30416399,604.55,603.25,0.3315375]
[1743386418210,6.82328921,604.55,603.25,0.3315375]
[1743386418415,3.09898994,604.54,603.25,0.3315375]
[1743386418618,0.30421444,604.53,603.25,0.3315375]
[1743386419020,1.18812332,604.53,603.25,0.3315375]
[1743386419220,0.30421444,604.52,603.25,0.3315375]
[1743386419520,2.60237753,604.52,603.25,0.3315375]
[1743386419719,0.30421444,604.51,603.25,0.3315375]
[1743386420222,4.53648462,604.51,603.25,0.3315375]
[1743386420422,0.30421444,604.5,603.25,0.3315375]
[1743386420720,5.63464237,604.5,603.25,0.3315375]
[1743386420918,6.33184113,604.49,603.25,0.3315375]
[1743386421115,2.60724171,604.48,603.25,0.3315375]
[1743386421325,2.30302727,604.48,603.25,0.3315375]
[1743386421619,3.91318038,604.48,603.25,0.3315375]
[1743386421815,1.43253824,604.47,603.25,0.3315375]
[1743386422020,2.31831796,604.47,603.25,0.3315375]
[1743386422216,2.3173222,604.47,603.25,0.3315375]
[1743386422421,2.31621192,604.47,603.25,0.3315375]
[1743386423123,0.28818444,604.52,603.25,0.3315375]
[1743386423620,0.30419903,604.51,603.25,0.3315375]
[1743386424214,0.28818444,604.52,603.25,0.3315375]
[1743386424418,0.30424189,604.51,603.25,0.3315375]
[1743386424614,1.43124675,604.5,603.25,0.3315375]
[1743386424817,0.30424189,604.49,603.25,0.3315375]
[1743386425018,0.63510478,604.48,603.25,0.3315375]
[1743386425318,0.30424189,604.47,603.25,0.3315375]
[1743386425719,1.16584574,604.46,603.25,0.3315375]
[1743386425920,0.6351212,604.45,603.25,0.3315375]
[1743386426215,0.63512667,604.44,603.25,0.3315375]
[1743386426420,0.63513215,604.43,603.25,0.3315375]
[1743386426617,1.16584574,604.45,603.25,0.3315375]
[1743386426618,0.63513762,604.42,603.25,0.3315375]
[1743386426817,0.63514309,604.41,603.25,0.3315375]
[1743386427020,0.63514857,604.4,603.25,0.3315375]
[1743386427223,0.63515404,604.39,603.25,0.3315375]
[1743386427418,0.63515952,604.38,603.25,0.3315375]
[1743386427623,0.30424189,604.37,603.25,0.3315375]
[1743386428531,4.03595825,604.37,603.25,0.3315375]
[1743386428725,0.5925457,604.36,603.25,0.3315375]
[1743386428932,0.30424189,604.35,603.25,0.3315375]
[1743386429124,6.80593294,604.36,603.25,0.3315375]
[1743386429327,5.63260521,604.35,603.25,0.3315375]
[1743386429526,6.32525436,604.34,603.25,0.3315375]
[1743386429730,2.60520455,604.33,603.25,0.3315375]
[1743386429931,0.30427658,604.32,603.25,0.3315375]
[1743386430129,3.02740066,604.33,603.25,0.3315375]
[1743386430333,9.04290003,604.33,603.25,0.3315375]
[1743386430526,6.01549937,604.32,603.25,0.3315375]
[1743386430732,2.30092797,604.31,603.25,0.3315375]
[1743386430929,0.88496517,604.31,603.25,0.3315375]
[1743386431131,3.91236583,604.31,603.25,0.3315375]
[1743386431330,3.7145714,604.3,603.25,0.3315375]
[1743386431532,6.01549937,604.3,603.25,0.3315375]
[1743386431733,2.58925328,604.29,603.25,0.3315375]
[1743386432336,5.61665394,604.29,603.25,0.3315375]
[1743386432537,6.01549937,604.28,603.25,0.3315375]
[1743386432738,2.30092797,604.27,603.25,0.3315375]
[1743386432937,3.91236583,604.27,603.25,0.3315375]
[1743386433131,3.7145714,604.26,603.25,0.3315375]
[1743386433335,0.88496517,604.25,603.25,0.3315375]
[1743386433535,2.05081091,604.25,603.25,0.3315375]
[1743386433736,3.47949222,604.25,603.25,0.3315375]
[1743386434138,3.91236583,604.25,603.25,0.3315375]
[1743386434343,6.00960111,604.24,603.25,0.3315375]
[1743386434539,2.29716721,604.23,603.25,0.3315375]
[1743386434736,1.17332632,604.23,603.25,0.3315375]
[1743386435035,0.28836115,604.23,603.25,0.3315375]
[1743386435640,1.16584574,604.22,603.25,0.3315375]
[1743386435841,0.30434937,604.21,603.25,0.3315375]
[1743386436237,1.16584574,604.22,603.25,0.3315375]
[1743386436742,0.28836115,604.23,603.25,0.3315375]
[1743386438239,0.30435156,604.22,603.25,0.3315375]
[1743386438641,4.0241727,604.22,603.25,0.3315375]
[1743386438940,5.1789945,604.21,603.25,0.3315375]
[1743386439140,2.59771224,604.2,603.25,0.3315375]
[1743386439345,2.30852226,604.2,603.25,0.3315375]
[1743386439541,3.02740066,604.2,603.25,0.3315375]
[1743386440046,0.28823337,604.19,603.25,0.3315375]
[1743386440241,2.59628519,604.19,603.25,0.3315375]
[1743386440642,0.28823337,604.19,603.25,0.3315375]
[1743386442442,5.99905897,604.27,603.25,0.3315375]
[1743386442647,5.99832073,604.26,603.25,0.3315375]
[1743386442849,4.58838446,604.25,603.25,0.3315375]
[1743386443045,3.02740066,604.27,603.25,0.3315375]
[1743386443046,2.30767062,604.24,603.25,0.3315375]
[1743386443251,2.57951215,604.26,603.25,0.3315375]
[1743386443464,1.16958564,604.26,603.25,0.3315375]
[1743386443957,0.28837548,604.26,603.25,0.3315375]
[1743386445560,2.29113667,604.32,603.25,0.3315375]
[1743386445754,3.70658147,604.33,603.25,0.3315375]
[1743386445755,0.63530078,604.31,603.25,0.3315375]
[1743386445959,0.28824292,604.25,603.25,0.3315375]
[1743386447455,2.57937959,604.25,603.25,0.3315375]
[1743386447653,0.28824292,604.25,603.25,0.3315375]
[1743386447853,1.16584574,604.24,603.25,0.3315375]
[1743386448254,7.15846123,604.24,603.25,0.3315375]
[1743386448456,7.15846123,604.23,603.25,0.3315375]
[1743386448657,5.99261549,604.22,603.25,0.3315375]
[1743386448858,5.99261549,604.21,603.25,0.3315375]
[1743386449055,5.99261549,604.2,603.25,0.3315375]
[1743386449259,5.99261549,604.19,603.25,0.3315375]
[1743386449457,4.58304862,604.18,603.25,0.3315375]
[1743386449660,2.30459252,604.17,603.25,0.3315375]
[1743386449860,3.02740066,604.17,603.25,0.3315375]
[1743386450359,5.99189984,604.19,603.25,0.3315375]
[1743386450360,2.30459252,604.18,603.25,0.3315375]
[1743386450958,0.28823098,604.23,603.25,0.3315375]
[1743386451455,3.02740066,604.27,603.25,0.3315375]
[1743386451661,5.33199318,604.27,603.25,0.3315375]
[1743386451855,2.30459252,604.26,603.25,0.3315375]
[1743386452257,3.47043826,604.27,603.25,0.3315375]
[1743386452660,2.30459252,604.27,603.25,0.3315375]
[1743386452959,0.28833964,604.26,603.25,0.3315375]
[1743386453660,0.30432532,604.25,603.25,0.3315375]
[1743386454055,0.3043373,604.24,603.25,0.3315375]
[1743386454257,1.16584574,604.24,603.25,0.3315375]
[1743386454452,0.3043373,604.23,603.25,0.3315375]
[1743386454856,1.16584574,604.22,603.25,0.3315375]
[1743386455057,0.3043373,604.21,603.25,0.3315375]
[1743386455258,1.45421884,604.22,603.25,0.3315375]
[1743386455454,1.16584574,604.2,603.25,0.3315375]
[1743386456457,1.71303554,604.22,603.25,0.3315375]
[1743386456458,5.62159058,604.22,603.25,0.3315375]
[1743386456657,2.30581682,604.21,603.25,0.3315375]
[1743386457562,1.42466244,604.21,603.25,0.3315375]
[1743386457758,1.16584574,604.41,603.25,0.3315375]
[1743386457955,0.28820234,604.31,603.25,0.3315375]
[1743386458762,5.99642645,604.44,603.25,0.3315375]
[1743386459062,0.28816893,604.39,603.25,0.3315375]
[1743386460361,3.02740066,604.42,603.25,0.3315375]
[1743386460859,2.30669204,604.42,603.25,0.3315375]
[1743386461057,1.16946709,604.43,603.25,0.3315375]
[1743386461264,3.31554811,604.43,603.25,0.3315375]
[1743386461555,2.30669204,604.42,603.25,0.3315375]
[1743386461960,0.30420017,604.41,603.25,0.3315375]
[1743386462262,1.16946709,604.43,603.25,0.3315375]
[1743386462263,0.28814745,604.43,603.25,0.3315375]
[1743386465564,6.29082578,604.43,603.25,0.3315375]
[1743386465761,2.29352621,604.42,603.25,0.3315375]
[1743386465958,0.88174042,604.42,603.25,0.3315375]
[1743386466159,3.90914108,604.42,603.25,0.3315375]
[1743386466360,1.42604717,604.41,603.25,0.3315375]
[1743386466563,2.30778759,604.41,603.25,0.3315375]
[1743386466861,1.42604717,604.41,603.25,0.3315375]
[1743386467065,1.42866906,604.41,603.25,0.3315375]
[1743386467265,3.02740066,604.42,603.25,0.3315375]
[1743386467465,1.634,604.44,603.25,0.3315375]
[1743386467762,0.28823814,604.43,603.25,0.3315375]
[1743386469669,1.634,604.44,603.25,0.3315375]
[1743386484076,0.30425363,604.43,603.25,0.3315375]
[1743386484269,1.47009937,604.43,603.25,0.3315375]
[1743386484469,0.30425363,604.42,603.25,0.3315375]
[1743386484979,0.28817967,604.42,603.25,0.3315375]
[1743386485379,0.30427446,604.41,603.25,0.3315375]
[1743386485673,0.28817967,604.42,603.25,0.3315375]
[1743386485880,2.58530663,604.42,603.25,0.3315375]
[1743386486079,6.30004603,604.42,603.25,0.3315375]
[1743386486282,2.29712696,604.41,603.25,0.3315375]
[1743386486874,3.02720802,604.41,603.25,0.3315375]
[1743386487072,6.75334569,604.41,603.25,0.3315375]
[1743386487275,4.59835161,604.4,603.25,0.3315375]
[1743386487582,3.02720802,604.39,603.25,0.3315375]
[1743386487783,9.03938311,604.39,603.25,0.3315375]
[1743386487975,6.01217509,604.38,603.25,0.3315375]
[1743386488180,2.29743569,604.37,603.25,0.3315375]
[1743386488377,0.88361221,604.37,603.25,0.3315375]
[1743386488875,0.28831098,604.36,603.25,0.3315375]
[1743386489078,3.74102133,604.36,603.25,0.3315375]
[1743386489276,1.42929038,604.35,603.25,0.3315375]
[1743386489479,7.46780215,604.36,603.25,0.3315375]
[1743386489783,1.16584574,604.34,603.25,0.3315375]
[1743386489976,4.89262656,604.34,603.25,0.3315375]
[1743386490177,3.71615499,604.33,603.25,0.3315375]
[1743386490482,7.17949117,604.33,603.25,0.3315375]
[1743386490682,6.01364543,604.32,603.25,0.3315375]
[1743386490882,1.16584574,604.33,603.25,0.3315375]
[1743386490883,2.31294215,604.31,603.25,0.3315375]
[1743386491075,1.42929038,604.32,603.25,0.3315375]
[1743386491280,0.28840536,604.31,603.25,0.3315375]
[1743386493488,6.01322176,604.36,603.25,0.3315375]
[1743386493683,2.29747045,604.35,603.25,0.3315375]
[1743386493891,0.28822143,604.3,603.25,0.3315375]
[1743386494393,0.63533467,604.29,603.25,0.3315375]
[1743386494593,0.63534015,604.28,603.25,0.3315375]
[1743386494794,0.63534563,604.27,603.25,0.3315375]
[1743386494989,0.30436776,604.26,603.25,0.3315375]
[1743386495295,0.30436776,604.26,603.08,0.28828232]
[1743386495699,1.16584574,604.25,603.08,0.28828232]
[1743386496000,1.94717533,604.24,603.08,0.28828232]
[1743386496196,1.94717533,604.23,603.08,0.28828232]
[1743386496494,0.63537302,604.22,602.38,2.49072383]
[1743386496695,1.64509107,604.19,602.4,0.33200531]
[1743386496893,0.63539493,604.18,602.4,0.33200531]
[1743386497090,0.30436776,604.17,602.4,0.33200531]
[1743386497292,0.33103813,604.16,602.4,0.33200531]
[1743386497490,0.30436776,604.15,602.4,0.33200531]
[1743386497693,0.33104909,604.14,602.41,0.28841372]
[1743386497998,0.30436776,604.13,602.43,0.33198877]
[1743386498195,0.33106005,604.12,602.43,0.33198877]
[1743386498392,0.30436776,604.11,602.43,0.33198877]
[1743386498597,1.21472278,604.1,602.43,0.33198877]
[1743386498798,1.51909602,604.09,602.43,0.33198877]
[1743386498992,0.30436776,604.08,602.43,0.33198877]
[1743386499297,1.4290022,604.07,602.43,0.33198877]
[1743386499496,0.30436776,604.06,602.43,0.33198877]
[1743386499698,0.30436776,604.08,602.43,0.33198877]
[1743386500000,1.16212506,604.05,602.43,0.33198877]
[1743386500194,0.30436776,604.04,602.43,0.33198877]
[1743386501107,1.885,604.03,602.43,0.33198877]
[1743386501402,0.30436776,604.02,602.43,0.33198877]
[1743386501602,6.81014077,604.02,602.43,0.33198877]
[1743386501804,3.09473504,604.01,602.43,0.33198877]
[1743386502000,0.30436776,604.0,602.43,0.33198877]
[1743386502199,1.46649282,604.0,602.43,0.33198877]
[1743386502395,0.30436776,603.99,602.43,0.33198877]
[1743386502797,4.59743432,603.99,602.43,0.33198877]
[1743386502997,2.31103079,603.98,602.43,0.33198877]
[1743386503196,3.02152515,603.99,602.43,0.33198877]
[1743386503994,1.885,604.03,602.43,0.33198877]
[1743386506200,0.28844241,604.02,602.43,0.33198877]
[1743386507203,1.885,604.03,602.43,0.33198877]
[1743386518209,1.885,604.03,602.58,2.49072383]
[1743386518408,1.885,604.03,602.6,0.33189512]
[1743386519509,1.885,604.03,602.67,2.49072383]
[1743386519706,1.885,604.03,602.69,0.33184555]
[1743386530713,2.17342209,604.03,602.69,0.33184555]
[1743386535511,1.885,604.03,602.69,0.33184555]
[1743386536616,0.28850937,604.02,602.69,0.33184555]
[1743386538424,5.78837175,604.03,602.69,0.33184555]
[1743386538619,6.00611787,604.02,602.69,0.33184555]
[1743386538922,2.29492984,604.01,602.69,0.33184555]